Cogmind - Beta 15 @@@ ROGUE MODE // 2025.07.03 @ 20:11:39 Player: LightKnight Result: Destroyed by Decapitator with Experimental Terror Saw Performance ------------- Evolutions (7) 3500 Regions Visited (14) 2800 Robots Destroyed (132) 660 Value Destroyed (6135) 6135 Prototype IDs (166) 3320 Alien Tech Used (3) 600 Bonus (4952) 4952 TOTAL SCORE: 21967 Bonus ------- High Alert Combat Kills 259 Follower Combat Kills 93 Delivered SUBCON Basin 2000 Registered with UFD 300 Met Optimus in HQ 500 Met Zhirov 300 Scanned by Researcher 500 Met Optimus at Protoforge 1000 Cogmind --------- Core Integrity 0/1300 Matter 148/300 Energy 100/100 System Corruption 0% Temperature Cool (0) Movement Flying (35) Location -3/Protoforge Parts ------- > --- POWER (2) -------- (None) > --- PROPULSION (4) --- Experimental Biomechanical Wings > --- UTILITY (11) ----- Plexus Tether Experimental Optical Array Advanced System Shield > --- WEAPON (4) ------- (None) > --- INVENTORY (5) ---- (None) Peak State ------------ > --- POWER ------------ Light Antimatter Reactor > --- PROPULSION ------- Experimental Biomechanical Wings Experimental Biomechanical Wings Experimental Surge Thruster Experimental Surge Thruster > --- UTILITY ---------- Plexus Tether Experimental Optical Array Long-range Terrain Scanner Surveybot 17 Chip Experimental Core Analyzer Experimental Armor Integrity Analyzer Advanced Hacking Suite Advanced System Shield A0-MCA's Component Scanner Tech Extrapolator Improved System Restoration Module > --- WEAPON ----------- Concept XC Strikerail Concept XC Strikerail Micro-nuke Launcher Datajack > --- INVENTORY -------- Transdimensional Reconstructor Lance [Rating: 166] Favorites ----------- Power Meta Core Engine Ion Engine Power Core Meta Core Reactor Light Antimatter Reactor Propulsion Light Treads Treads Light Treads Leg Carbon-fiber Leg Wheel Wheel Hover Unit Cooled Gravmag System Flight Unit Experimental Biomechanical Wings Utility Tech Extrapolator Device Advanced Sensor Array Storage Huge Storage Unit Processor Tech Extrapolator Hackware Advanced System Shield Protection Makeshift Light Armor Plating Weapon Subdweller Laser Energy Gun Subdweller Laser Energy Cannon Advanced Plasma Cannon Ballistic Gun Concept XC Strikerail Ballistic Cannon Magnetic Acceleration Cannon Launcher Scatter Rocket Array Special Weapon Junk Cannon Impact Weapon Makeshift Hammer Slashing Weapon Sigix Broadsword Piercing Weapon Lance Special Melee Weapon Datajack Build | -11 -10 -10 -9 -9 -6 -5 -5 -5 -5 -4 -4 -3 -3 -3 ------- Run | Yrd Mat Sub Rec Scr Fac Fac Upp Upp Zhi Pro Fac Res Qua Frg Slots Evolved 14 | . . . . . 8 2 . . . . 2 2 . . Power 1 | . . . . . 1 . . . . . . . . . Propulsion 2 | . . . . . 2 . . . . . . . . . Utility 9 | . . . . . 3 2 . . . . 2 2 . . Weapon 2 | . . . . . 2 . . . . . . . . . Parts Attached 116 | 2 3 12 2 5 32 13 3 . 7 . 6 4 3 24 Power 14 | 1 . 3 . . 4 2 . . 1 . 1 . 1 1 Engine 6 | 1 . 2 . . 3 . . . . . . . . . Core 4 | . . 1 . . 1 2 . . . . . . . . Reactor 4 | . . . . . . . . . 1 . 1 . 1 1 Propulsion 35 | . . 2 1 1 9 4 1 . 3 . 1 1 . 12 Treads 11 | . . 2 1 1 6 . 1 . . . . . . . Leg 4 | . . . . . 3 1 . . . . . . . . Wheel 3 | . . . . . . 3 . . . . . . . . Hover 13 | . . . . . . . . . 3 . 1 1 . 8 Flight 4 | . . . . . . . . . . . . . . 4 Utility 36 | . 1 3 1 1 8 4 2 . 3 . 4 1 1 7 Device 12 | . 1 . . . 3 2 2 . . . 1 . . 3 Storage 2 | . . 1 . 1 . . . . . . . . . . Processor 14 | . . . 1 . 4 2 . . . . 2 . 1 4 Hackware 4 | . . . . . 1 . . . 1 . 1 1 . . Protection 4 | . . 2 . . . . . . 2 . . . . . Artifact . | . . . . . . . . . . . . . . . Weapon 31 | 1 2 4 . 3 11 3 . . . . . 2 1 4 Energy Gun 12 | 1 2 2 . . 6 . . . . . . 1 . . Energy Cannon 4 | . . 1 . 1 1 1 . . . . . . . . Ballistic Gun 3 | . . . . . 1 . . . . . . . . 2 Ballistic Cannon 1 | . . . . . . 1 . . . . . . . . Launcher 5 | . . . . . 3 1 . . . . . . . 1 Special Weapon 1 | . . . . 1 . . . . . . . . . . Impact Weapon 1 | . . 1 . . . . . . . . . . . . Slashing Weapon 1 | . . . . . . . . . . . . . 1 . Piercing Weapon 1 | . . . . . . . . . . . . 1 . . Special Melee Weapon 2 | . . . . 1 . . . . . . . . . 1 Unidentified Prototypes 12 | . . 1 . 1 3 1 . . 5 . . . 1 . Parts Lost 46 | . . . . . 19 9 . . . . . 2 . 16 Power 7 | . . . . . 2 2 . . . . . 1 . 2 Propulsion 14 | . . . . . 9 2 . . . . . . . 3 Utility 11 | . . . . . 2 1 . . . . . 1 . 7 Weapon 14 | . . . . . 6 4 . . . . . . . 4 Highest Loss Streak 11 | . . . . . 11 7 . . . . . 2 . 5 To Critical Strikes . | . . . . . . . . . . . . . . . Average Backups 10 | 6 7 7 10 10 15 15 16 16 13 3 3 4 4 3 Power . | 1 1 1 1 . . . . 1 . . . 1 . . Propulsion 1 | 4 4 1 2 1 . . 3 3 2 . . . 1 . Utility 4 | . . 3 3 4 7 6 6 6 5 2 1 1 . . Weapon 3 | 1 1 1 3 2 4 6 4 4 2 . . 1 2 1 Tool/Special . | . . . . . . . . . . . . . . . Unused Backups 23 | . 3 8 . 3 . 1 . . 8 . . . . . Power 2 | . . 1 . . . . . . 1 . . . . . Propulsion 9 | . 2 4 . 1 . . . . 2 . . . . . Utility 5 | . 1 1 . 1 . 1 . . 1 . . . . . Weapon 5 | . . 2 . 1 . . . . 2 . . . . . Tool/Special 2 | . . . . . . . . . 2 . . . . . Average Slot Usage (%) 81 | . 90 88 79 65 85 83 99 100 93 76 81 81 85 78 Engine 2 | . 14 8 . . 5 2 . . . . . . . . Core 5 | . . 3 10 7 1 5 11 11 8 . . . . . Treads 20 | . . 22 29 29 17 13 10 11 8 . . . . . Leg 1 | . 28 2 . . 5 . . . . . . . . . Wheel 1 | . . . . . . 1 10 11 7 . . . . . Hover 1 | . . . . . . . . . 3 17 19 19 19 14 Device 2 | . 4 . . . 5 10 5 5 4 10 10 9 9 6 Storage 8 | . 14 12 10 10 6 5 5 5 3 . . . . . Processor 13 | . . . 5 11 19 22 29 29 29 23 25 23 22 29 Hackware 1 | . . . . . . . . . . 5 9 14 14 10 Protection 3 | . . 12 4 . . . . . . . . . . . Energy Gun 11 | . 28 19 20 5 11 5 5 5 3 . . 1 4 . Energy Cannon 2 | . . 4 . . 2 2 5 5 5 5 5 4 1 . Launcher 1 | . . . . . 1 2 4 5 5 5 5 4 4 . Peak Build Rating 166 | 6 10 45 44 38 72 84 87 87 97 81 104 125 141 166 Average Rating 49 | 6 7 22 33 23 61 77 86 87 85 79 99 113 137 135 On Entrance 63 | 6 6 10 45 29 17 72 79 87 87 81 79 104 113 141 Naked Turns . | . . . . . . . . . . . . . . . Heaviest Build 98 | 14 15 98 98 94 81 79 86 86 88 31 32 40 40 43 Greatest Support 83 | 20 20 40 60 60 83 70 28 20 33 33 57 44 64 64 Greatest Overweight (x) 7 | . . 2 2 1 4 7 4 4 7 . . . . 1 Average Overweight (x) . | . . . 1 . . 2 3 4 2 . . . . . Largest Inventory Capacity 25 | 8 8 25 25 25 20 20 20 20 20 5 5 5 5 5 Average Capacity 18 | 8 8 12 25 23 20 20 20 20 16 5 5 5 5 5 Most Carried 25 | 6 8 24 25 20 20 20 20 19 20 5 5 5 5 5 Average Carried 13 | 6 7 11 16 12 17 17 19 19 15 3 3 4 4 3 Final Capacity 25 | 8 8 25 25 20 20 20 20 20 5 5 5 5 5 5 Final Carried 24 | 6 8 24 13 20 20 18 19 19 5 3 5 5 5 . Class Distribution -------------------- 60% | Mutant 14% | Skirmisher 8% | Gunner 5% | Hacker-Scout 3% | Scavenger-Gunner Dominant Class ---------------- Mutant | -10/Materials Mutant | -10/Subcaves Mutant | -9/Recycling Mutant | -9/Scraptown Gunner | -6/Factory Skirmisher | -5/Factory Skirmisher | -5/Upper Caves Skirmisher | -5/Upper Caves Skirmisher | -5/Zhirov Scout | -4/Proximity Caves Hacker-Scout | -4/Factory Hacker-Scout | -3/Research Hacker-Scout | -3/Quarantine Hacker-Scout | -3/Protoforge Resources | -11 -10 -10 -9 -9 -6 -5 -5 -5 -5 -4 -4 -3 -3 -3 ----------- Run | Yrd Mat Sub Rec Scr Fac Fac Upp Upp Zhi Pro Fac Res Qua Frg Matter Collected 2655 | 205 53 140 30 43 576 239 276 100 . 130 . 90 . 773 Remotely . | . . . . . . . . . . . . . . . Salvage Created 6174 | . 50 442 221 . 3017 809 455 55 . . . 87 . 1038 Parts 288 | . 2 25 11 . 110 42 21 7 . . . 8 . 62 Haulers Intercepted . | . . . . . . . . . . . . . . . Recyclers Shooed 4 | . . . . . 3 1 . . . . . . . . Parts Field Recycled . | . . . . . . . . . . . . . . . Retrieved Matter . | . . . . . . . . . . . . . . . Parts Self-Destructed 38 | . . 14 . . . . 4 3 . 17 . . . . Prevented 3 | . . . . . . . . . . 3 . . . . Kills | -11 -10 -10 -9 -9 -6 -5 -5 -5 -5 -4 -4 -3 -3 -3 ------- Run | Yrd Mat Sub Rec Scr Fac Fac Upp Upp Zhi Pro Fac Res Qua Frg Combat Hostiles Destroyed 113 | . 1 11 3 . 47 13 12 4 . . . 4 . 18 Guns 43 | . 1 8 3 . 12 2 . . . . . . . 17 Cannons 19 | . . 2 . . 10 7 . . . . . . . . AOE 34 | . . . . . 12 1 12 4 . . . 4 . 1 Classes Destroyed 23 | . 1 2 3 . 10 . 1 . . . . . . 6 Worker 4 | . . . . . 2 2 . . . . . . . . Builder 3 | . . . . . 2 1 . . . . . . . . Tunneler 1 | . . . . . 1 . . . . . . . . . Recycler 2 | . . . 1 . 1 . . . . . . . . . Operator 3 | . . . . . 1 . . . . . . . . 2 Drone 7 | . . . . . . . . . . . . . . 7 Watcher 3 | . . . . . 1 . . . . . . 1 . 1 Swarmer 17 | . . 1 . . 3 . 5 4 . . . 4 . . Grunt 41 | . 1 . . . 25 8 6 . . . . . . 1 Brawler 3 | . . . . . 1 . 1 . . . . . . 1 Duelist 1 | . . . . . 1 . . . . . . . . . Protector 1 | . . . . . 1 . . . . . . . . . Researcher 2 | . . . . . . . . . . . . . . 2 Sentry 8 | . . . 2 . 4 1 . . . . . . . 1 Specialist 2 | . . . . . . . . . . . . . . 2 Hunter 9 | . . . . . 7 2 . . . . . . . . Programmer 10 | . . . 1 . 5 2 . . . . . . . 2 Heavy 1 | . . . . . 1 . . . . . . . . . Decapitator 2 | . . . . . . . . . . . . . . 2 Striker 1 | . . . . . . . . . . . . . . 1 Executioner 1 | . . . . . . . . . . . . . . 1 Subdweller 10 | . . 10 . . . . . . . . . . . . Samaritan 3 | . . . . . . . 3 . . . . . . . Best Kill Streak 10 | . 1 2 2 . 10 7 5 4 . . . 5 . 5 Combat Bots Only 8 | . 1 2 2 . 8 7 5 4 . . . 4 . 5 Max Kills in Single Turn 5 | . 1 1 2 . 3 2 5 3 . . . 5 . 1 Gunslinging 1 | . . . 1 . . . . . . . . . . . Exploded 5 | . . . . . 2 1 5 3 . . . 4 . 1 Melee . | . . . . . . . . . . . . . . . Uniques/NPCs Destroyed . | . . . . . . . . . . . . . . . Combat | -11 -10 -10 -9 -9 -6 -5 -5 -5 -5 -4 -4 -3 -3 -3 -------- Run | Yrd Mat Sub Rec Scr Fac Fac Upp Upp Zhi Pro Fac Res Qua Frg Hostile Shots Fired 707 | . 4 47 12 . 353 69 4 6 . . 6 20 12 174 Missed 279 | . 2 27 2 . 122 20 1 2 . . 2 8 5 88 Hits 428 | . 2 20 10 . 231 49 3 4 . . 4 12 7 86 Melee 21 | . . . . . 2 . . . . . . . . 19 Projectile 407 | . 2 20 10 . 229 49 3 4 . . 4 12 7 67 Critical Strikes 28 | . . . 1 . 6 4 . . . . . . . 17 Part Disruptions 1 | . . . . . 1 . . . . . . . . . Damage Taken 8215 | . 34 374 153 . 3269 964 59 59 . 8 85 283 138 2789 Core 1926 | . . 67 32 . 393 171 . 14 . . . 26 . 1223 Absorbed by Shields 187 | . . . . . 163 . . . . . . . . 24 Core Remaining (%) 78 | 100 . . . 60 53 . . . . 81 100 . . . Volleys Fired 372 | . 5 68 5 . 116 37 19 3 . 2 24 17 6 70 Largest 4 | . 2 2 2 . 4 3 1 1 . 1 1 2 1 2 Hottest 240 | . 80 145 120 . 220 222 98 98 . 98 98 178 98 240 Shots Fired 567 | . 10 99 10 . 189 70 19 3 . 2 24 21 6 114 Gun 325 | . 10 78 10 . 77 28 . . . . . 4 5 113 Cannon 152 | . . 21 . . 38 34 15 1 . 2 24 16 1 . Launcher 33 | . . . . . 22 3 4 2 . . . 1 . 1 Special 57 | . . . . . 52 5 . . . . . . . . Kinetic 138 | . . . . . 19 17 . . . . . . . 102 Thermal 302 | . 3 99 10 . 71 40 15 1 . 2 24 20 6 11 Explosive 11 | . . . . . 3 . 4 2 . . . 1 . 1 Electromagnetic 59 | . 7 . . . 44 8 . . . . . . . . Impact 57 | . . . . . 52 5 . . . . . . . . Robot Hit Streak 38 | . 4 7 3 . 10 22 10 . . . . . 11 38 Robot Miss Streak 10 | . 1 2 2 . 3 1 10 . . . . . . 2 Penetration Max 1 | . . . . . 1 . . . . . . . . 1 Secondary Targets 6 | . . . 1 . 3 . . . . . . . . 2 Max Gunslinging Chain 1 | . . . 1 . 1 . . . . . . . . 1 Shots Hit Robots 342 | . 8 40 6 4 132 49 12 . . . . . 1 90 Core Hits 236 | . 4 15 3 . 77 26 46 9 . . . 15 . 41 Critical Kills 7 | . . 2 . . 1 . . . . . . . . 4 Critical Parts Destroyed 20 | . . . 1 . 8 . . . . . . . . 11 Critical Strikes 31 | . 1 2 1 . 11 1 . . . . . . . 15 Burn 1 | . . . . . 1 . . . . . . . . . Meltdown 1 | . . 1 . . . . . . . . . . . . Destroy 17 | . . 1 1 . . . . . . . . . . 15 Blast 1 | . . . . . . 1 . . . . . . . . Corrupt 2 | . 1 . . . 1 . . . . . . . . . Smash 9 | . . . . . 9 . . . . . . . . . Melee Attacks 14 | . . 2 . 4 . . . . . . . . . 8 Impact 2 | . . 2 . . . . . . . . . . . . Slashing . | . . . . . . . . . . . . . . . Piercing . | . . . . . . . . . . . . . . . Sneak Attacks 12 | . . . . 4 . . . . . . . . . 8 Combat Hostiles . | . . . . . . . . . . . . . . . Follow-up Attacks . | . . . . . . . . . . . . . . . Damage Inflicted 15446 | . 105 807 239 . 7032 1899 1516 201 . . . 375 37 3235 Guns 5411 | . 95 560 180 . 1266 399 . . . . . . 37 2874 Cannons 2074 | . . 247 . . 701 824 302 . . . . . . . Explosions 4468 | . . . . . 1908 409 1214 201 . . . 375 . 361 Melee . | . . . . . . . . . . . . . . . Ramming 103 | . 10 . 59 . 34 . . . . . . . . . Kinetic 3535 | . . . . . 234 427 . . . . . . . 2874 Thermal 3380 | . 28 807 180 . 1283 743 302 . . . . . 37 . Explosive 2731 | . . . . . 580 . 1214 201 . . . 375 . 361 Electromagnetic 2307 | . 67 . . . 1778 462 . . . . . . . . Impact 3390 | . . . . . 3123 267 . . . . . . . . Slashing . | . . . . . . . . . . . . . . . Piercing . | . . . . . . . . . . . . . . . Highest Corruption 2 | . . . . . 2 1 1 . . . . . . 1 Average Corruption 1 | . . . . . 1 1 1 . . . . . . 1 Corruption Purged 2 | . . . . . . . 1 . . . . . . 1 Corruption Blocked . | . . . . . . . . . . . . . . . Effects 31 | . . . . . 22 . 7 . . . . . . 2 Message Errors 11 | . . . . . 8 . 2 . . . . . . 1 Matter Fused 6 | . . . . . 4 . 1 . . . . . . 1 Heat Flow Errors 3 | . . . . . 2 . 1 . . . . . . . Energy Discharges 3 | . . . . . 3 . . . . . . . . . Data Loss (minor) 4 | . . . . . 1 . 3 . . . . . . . Data Loss (major) 1 | . . . . . 1 . . . . . . . . . Misfires 2 | . . . . . 2 . . . . . . . . . Alerts 1 | . . . . . 1 . . . . . . . . . Overload Shots 3 | . . . . . . 1 . . . . . . . 2 Overflow Damage 1623 | . . . . . 1559 15 44 5 . . . . . . Projectiles 1599 | . . . . . 1559 15 25 . . . . . . . Explosions 24 | . . . . . . . 19 5 . . . . . . Melee . | . . . . . . . . . . . . . . . Knockbacks 25 | . . . 2 . 22 1 . . . . . . . . Impact 24 | . . . 2 . 22 . . . . . . . . . Kinetic 1 | . . . . . . 1 . . . . . . . . Secondary . | . . . . . . . . . . . . . . . Self-Inflicted Damage 158 | . . . . . 11 35 . . . . . 31 . 81 Shots 6 | . . . . . 2 2 . . . . . 1 . 1 Rammed 12 | . . . 6 . 6 . . . . . . . . . Targets Rammed 23 | . 7 . 7 . 9 . . . . . . . . . Kicked 9 | . 7 . . . 2 . . . . . . . . . Crushed 2 | . . . 1 . 1 . . . . . . . . . Highest Temperature 264 | . 79 252 225 . 264 156 208 50 . 48 92 198 . 86 Average Temperature 66 | . 35 47 104 . 101 52 97 25 . 31 30 52 . 46 Received Heat Transfer 1384 | . 18 78 18 . 643 267 21 . . . 12 57 36 234 Siege Activations . | . . . . . . . . . . . . . . . Martial Activations . | . . . . . . . . . . . . . . . Shielding Activations . | . . . . . . . . . . . . . . . Robots Disrupted . | . . . . . . . . . . . . . . . Combat Hostiles . | . . . . . . . . . . . . . . . Robots Corrupted 18 | . . . . . 15 3 . . . . . . . . Combat Hostiles 16 | . . . . . 13 3 . . . . . . . . Parts Fried 31 | . . . . . 30 1 . . . . . . . . Impact Corruptions 44 | . . . . . 42 2 . . . . . . . . Robots Melted 1 | . . 1 . . . . . . . . . . . . Combat Hostiles 1 | . . 1 . . . . . . . . . . . . Parts Melted 12 | . . 2 . . 4 4 2 . . . . . . . Heat Transferred 5190 | . 75 1204 200 . 2045 1179 450 . . . . . 37 . Parts Sabotaged . | . . . . . . . . . . . . . . . Parts Stolen . | . . . . . . . . . . . . . . . Parts Stripped . | . . . . . . . . . . . . . . . Power Chain Reactions 1 | . . . . . 1 . . . . . . . . . Alert | -11 -10 -10 -9 -9 -6 -5 -5 -5 -5 -4 -4 -3 -3 -3 ------- Run | Yrd Mat Sub Rec Scr Fac Fac Upp Upp Zhi Pro Fac Res Qua Frg Maximum Alert Level 2 | . . . . . 2 1 . . . . . 1 . 2 Low Security (%) 72 | 100 100 . 100 . 52 48 . . . . 100 80 100 17 Level 1 18 | . . . . . 33 51 . . . . . 20 . 41 Level 2 8 | . . . . . 14 . . . . . . . . 41 Level 3 . | . . . . . . . . . . . . . . . Level 4 . | . . . . . . . . . . . . . . . Level 5 . | . . . . . . . . . . . . . . . High Security . | . . . . . . . . . . . . . . . Max Security . | . . . . . . . . . . . . . . . Peak Influence 631 | . 60 . 47 . 631 306 . . . . 45 230 140 555 Initial 306 | . . . 7 . . 306 . . . . . 7 112 78 Average 123 | . 23 . 2 . 225 206 . . . . 9 57 111 354 Influence Increases 4373 | . 71 50 298 . 1560 358 270 90 . . 147 314 78 1137 Destroy 0b10 Robot/C 2000 | . 20 20 60 . 980 260 240 80 . . . 80 . 260 Destroy 0b10 Robot/NC 125 | . . . 5 . 50 15 . . . . . 5 . 50 Destroy Leader 386 | . 10 . . . 262 40 30 10 . . . 12 . 22 Allied During Kill 50 | . . . . . 50 . . . . . . . . . Successful Hack 157 | . 11 . 23 . 46 12 . . . . . . 14 51 Select Force Hacks 240 | . 30 . 210 . . . . . . . . . . . Disable Machine 240 | . . . . . 105 15 . . . . 45 . 15 60 Anti-Garrison Action 200 | . . . . . . . . . . . . . . 200 Destroy Structure 210 | . . . . . 22 16 . . . . 42 82 4 44 Partial Spotted 150 | . . . . . 15 . . . . . 60 30 . 45 Lose Combat Pursuer 615 | . . 30 . . 30 . . . . . . 105 45 405 Influence Decreases 3844 | . 70 36 313 . 934 778 476 58 32 . 132 129 138 748 Entered New Map 596 | . . 1 8 . . 320 77 . 32 . . 8 88 62 Time Decay 2600 | . 70 35 305 . 634 368 399 58 . . 122 101 50 458 Lost Part 455 | . . . . . 185 90 . . . . . 20 . 160 Lost Ally 125 | . . . . . 115 . . . . . 10 . . . Purge Threat 68 | . . . . . . . . . . . . . . 68 Squads Dispatched 39 | . 1 . . . 16 3 . . . . 7 3 1 8 Investigation 21 | . 1 . . . 6 2 . . . . 6 2 . 4 Extermination 8 | . . . . . 4 1 . . . . 1 1 1 . Reinforcement 9 | . . . . . 5 . . . . . . . . 4 Assault 1 | . . . . . 1 . . . . . . . . . Garrison . | . . . . . . . . . . . . . . . Intercept . | . . . . . . . . . . . . . . . Searches Triggered . | . . . . . . . . . . . . . . . Construction Impeded 1 | . . . . . 1 . . . . . . . . . Haulers Reinforced . | . . . . . . . . . . . . . . . Active Scanning Responses . | . . . . . . . . . . . . . . . Cargo Convoy Interrupts . | . . . . . . . . . . . . . . . Stealth | -11 -10 -10 -9 -9 -6 -5 -5 -5 -5 -4 -4 -3 -3 -3 --------- Run | Yrd Mat Sub Rec Scr Fac Fac Upp Upp Zhi Pro Fac Res Qua Frg Distress Signals 15 | . . . . . 5 . . . . . . 3 . 7 Communications Jammed . | . . . . . . . . . . . . . . . Distress Signals . | . . . . . . . . . . . . . . . Times Spotted 255 | . 4 16 3 . 73 14 10 4 . . 10 20 4 97 Peak Tracking Total 13 | . 2 3 2 . 7 5 5 3 . . 4 8 4 13 Tactical Retreats 22 | . . 2 . . 2 . . . . . . 4 1 13 Traps | -11 -10 -10 -9 -9 -6 -5 -5 -5 -5 -4 -4 -3 -3 -3 ------- Run | Yrd Mat Sub Rec Scr Fac Fac Upp Upp Zhi Pro Fac Res Qua Frg Traps Triggered 10 | . . . . . 1 . . . . . . 2 . 7 Indirectly . | . . . . . . . . . . . . . . . Trap Hack Attempts 1 | . . . . . . . . . . . . . . 1 Triggered . | . . . . . . . . . . . . . . . Disarmed . | . . . . . . . . . . . . . . . Reprogrammed . | . . . . . . . . . . . . . . . Reused . | . . . . . . . . . . . . . . . Traps Extracted . | . . . . . . . . . . . . . . . Installed 3 | . . . . . . . . . . 3 . . . . Triggered . | . . . . . . . . . . . . . . . Machines | -11 -10 -10 -9 -9 -6 -5 -5 -5 -5 -4 -4 -3 -3 -3 ---------- Run | Yrd Mat Sub Rec Scr Fac Fac Upp Upp Zhi Pro Fac Res Qua Frg Machines Disabled 19 | . . . . . 7 1 . . . . 3 . 1 7 Max in Single Turn 2 | . . . . . 1 1 . . . . 1 . 1 2 Garrison Access 6 | . . . . . 1 1 . . . . 2 1 . 1 Machines Repaired . | . . . . . . . . . . . . . . . Machines Dismantled . | . . . . . . . . . . . . . . . Machines Sabotaged . | . . . . . . . . . . . . . . . Overloaded Fab Kills . | . . . . . . . . . . . . . . . Hacking | -11 -10 -10 -9 -9 -6 -5 -5 -5 -5 -4 -4 -3 -3 -3 --------- Run | Yrd Mat Sub Rec Scr Fac Fac Upp Upp Zhi Pro Fac Res Qua Frg Machines Accessed 73 | . 2 3 13 3 13 4 . . 4 1 12 5 1 12 Terminals 28 | . 1 . 6 . 5 1 . . . 1 4 2 1 7 Fabricators 3 | . . . . . 1 . . . . . . . . 2 Repair Stations . | . . . . . . . . . . . . . . . Recycling Units 26 | . 1 . 7 . 6 2 . . . . 6 2 . 2 Scanalyzers . | . . . . . . . . . . . . . . . Garrison Access 6 | . . . . . 1 1 . . . . 2 1 . 1 Total Hacks 179 | . 5 7 27 26 17 6 . . 17 7 21 11 2 33 Successful 127 | . 3 7 17 26 13 5 . . 17 7 8 5 2 17 Failed 51 | . 2 . 9 . 4 1 . . . . 13 6 . 16 Catastrophic 13 | . . . 1 . 3 . . . . . 4 1 . 4 Database Lockouts 1 | . . . 1 . . . . . . . . . . . Manual 75 | . 5 . 19 1 14 5 . . . . 18 8 . 5 Terminals 81 | . 4 . 20 . 8 2 . . . 7 9 6 2 23 Fabricators 4 | . . . . . 1 . . . . . . . . 3 Repair Stations . | . . . . . . . . . . . . . . . Recycling Units 33 | . 1 . 7 . 6 3 . . . . 9 4 . 3 Scanalyzers . | . . . . . . . . . . . . . . . Garrison Access 11 | . . . . . 2 1 . . . . 3 1 . 4 Terminal Hacks 87 | . 1 7 8 26 2 2 . . 17 7 . 1 2 14 Record 41 | . . 5 . 19 . . . . 5 7 . . . 5 Part Schematic 5 | . . . 1 . . . . . 4 . . . . . Robot Analysis 12 | . 1 . . 7 . . . . 4 . . . . . Prototype ID Bank 12 | . . . 7 . . . . . 4 . . . . 1 Open Door 1 | . . 1 . . . . . . . . . . . . Level Access Points 1 | . . . . . . . . . . . . . . 1 Branch Access Points 1 | . . . . . 1 . . . . . . . . . Machine Index 1 | . . . . . . . . . . . . . 1 . Recycling Unit Index 1 | . . . . . . 1 . . . . . . . . Garrison Index 1 | . . . . . . . . . . . . . . 1 Alert Level 1 | . . . . . . . . . . . . 1 . . Unreport Threat 1 | . . . . . . . . . . . . . . 1 Locate Traps 5 | . . . . . 1 1 . . . . . . 1 2 Registered Components 1 | . . . . . . . . . . . . . . 1 Zone Layout 1 | . . . . . . . . . . . . . . 1 Proto ID Catalog 1 | . . . . . . . . . . . . . . 1 Release Object 1 | . . 1 . . . . . . . . . . . . Fabricator Hacks 1 | . . . . . 1 . . . . . . . . . Network Status 1 | . . . . . 1 . . . . . . . . . Repair Station Hacks . | . . . . . . . . . . . . . . . Recycling Unit Hacks . | . . . . . . . . . . . . . . . Scanalyzer . | . . . . . . . . . . . . . . . Garrison Access Hacks 5 | . . . . . 1 1 . . . . 2 1 . . Seal Access 5 | . . . . . 1 1 . . . . 2 1 . . Unauthorized Hacks 34 | . 2 . 9 . 9 2 . . . . 6 3 . 3 Terminals 7 | . 1 . 2 . 2 . . . . . 1 1 . . Assimilate 1 | . . . . . . . . . . . 1 . . . Botnet 6 | . 1 . 2 . 2 . . . . . . 1 . . Fabricators . | . . . . . . . . . . . . . . . Repair Stations . | . . . . . . . . . . . . . . . Recycling Units 25 | . 1 . 7 . 6 2 . . . . 5 2 . 2 Tunnel 8 | . 1 . 7 . . . . . . . . . . . Fedlink 16 | . . . . . 5 2 . . . . 5 2 . 2 Scrapoids 1 | . . . . . 1 . . . . . . . . . Scanalyzers . | . . . . . . . . . . . . . . . Garrison Access 2 | . . . . . 1 . . . . . . . . 1 Broadcast 1 | . . . . . 1 . . . . . . . . . Jam 1 | . . . . . . . . . . . . . . 1 Data Cores Recovered 3 | . . . . . 1 . . . . . . . . 2 Used 2 | . . . . . 1 . . . . . . . . 1 Hacking Detections 32 | . 1 . 6 . 6 . . . . . 5 4 1 9 Full Trace Events 3 | . . . 1 . . . . . . . 1 . . 1 Feedback Events . | . . . . . . . . . . . . . . . Feedback Blocked . | . . . . . . . . . . . . . . . Robot Schematics Acquired 6 | . . . . . . . . . . . . . . 6 Robots Built . | . . . . . . . . . . . . . . . Authchips . | . . . . . . . . . . . . . . . Time . | . . . . . . . . . . . . . . . Total Robot Build Rating . | . . . . . . . . . . . . . . . Part Schematics Acquired 62 | . . . 8 6 19 . 1 . 6 2 6 2 1 11 Parts Built . | . . . . . . . . . . . . . . . Authchips . | . . . . . . . . . . . . . . . Time . | . . . . . . . . . . . . . . . Total Part Build Rating . | . . . . . . . . . . . . . . . Parts Repaired . | . . . . . . . . . . . . . . . Time . | . . . . . . . . . . . . . . . Parts Recycled . | . . . . . . . . . . . . . . . Recycled Matter . | . . . . . . . . . . . . . . . Retrieved Matter . | . . . . . . . . . . . . . . . Retrieved Components . | . . . . . . . . . . . . . . . Parts Scanalyzed . | . . . . . . . . . . . . . . . Part Schematics Acquired . | . . . . . . . . . . . . . . . Parts Damaged . | . . . . . . . . . . . . . . . Bothacking | -11 -10 -10 -9 -9 -6 -5 -5 -5 -5 -4 -4 -3 -3 -3 ------------ Run | Yrd Mat Sub Rec Scr Fac Fac Upp Upp Zhi Pro Fac Res Qua Frg Used RIF Installer . | . . . . . . . . . . . . . . . Robots Hacked 10 | . . . . 4 . . . . . . . . . 6 Non-combat 3 | . . . . 1 . . . . . . . . . 2 Combat 6 | . . . . 3 . . . . . . . . . 3 Robot Hacks Applied 9 | . . . . 4 . . . . . . . . . 5 parse_system 9 | . . . . 4 . . . . . . . . . 5 Manual 1 | . . . . . . . . . . . . . . 1 Relay Couplers Released . | . . . . . . . . . . . . . . . Fabnet Peak Effective % . | . . . . . . . . . . . . . . . Robots Rewired 6 | . . . 2 . 4 . . . . . . . . . Allies Hacked . | . . . . . . . . . . . . . . . Hacks Repelled . | . . . . . . . . . . . . . . . Allies | -11 -10 -10 -9 -9 -6 -5 -5 -5 -5 -4 -4 -3 -3 -3 -------- Run | Yrd Mat Sub Rec Scr Fac Fac Upp Upp Zhi Pro Fac Res Qua Frg Total Allies 12 | . . . 2 . 9 . . . . . 1 . . . Largest Group 6 | . . . 2 2 6 . . . . . 1 . . . Highest-Rated Group 148 | . . . 42 42 148 . . . . . 10 . . . Highest-Rated Ally 40 | . . . 27 27 40 . . . . . 10 . . . Total Orders 5 | . . . 2 3 . . . . . . . . . . STAY 3 | . . . 1 2 . . . . . . . . . . FOLLOW 2 | . . . 1 1 . . . . . . . . . . Ally Attacks 57 | . . . . . 57 . . . . . . . . . Total Damage 1085 | . . . . . 1085 . . . . . . . . . Kills 4 | . . . . . 4 . . . . . . . . . Allies Corrupted . | . . . . . . . . . . . . . . . Allies Melted 2 | . . . . . . . . . . 1 . . . 1 Intel | -11 -10 -10 -9 -9 -6 -5 -5 -5 -5 -4 -4 -3 -3 -3 ------- Run | Yrd Mat Sub Rec Scr Fac Fac Upp Upp Zhi Pro Fac Res Qua Frg Active Infowar (turns) 8939 | . . . . . 2753 841 1425 1206 218 417 481 285 117 1196 Optics 8718 | . . . . . 2532 841 1425 1206 218 417 481 285 117 1196 Sensors 4464 | . . . . . 221 . 1331 1206 204 417 481 285 117 202 A.S.S. 79 | . . . . . . . . . . . . . . 79 Terrain 2646 | . . . . . . 834 . . . 416 481 285 117 513 Robot Analysis Total 12 | . 1 . . 7 . . . . 4 . . . . . Derelict Logs Recovered 10 | . . . . 4 . . 3 1 . 2 . . . . Drone Launches . | . . . . . . . . . . . . . . . Drone Recoveries . | . . . . . . . . . . . . . . . Exploration | -11 -10 -10 -9 -9 -6 -5 -5 -5 -5 -4 -4 -3 -3 -3 ------------- Run | Yrd Mat Sub Rec Scr Fac Fac Upp Upp Zhi Pro Fac Res Qua Frg Turns Passed 24590 | 6 187 4497 4927 5377 3410 841 1425 1206 218 417 481 285 117 1196 Spaces Moved 14217 | 3 115 2343 1433 2131 1349 313 849 856 165 723 1098 579 264 1996 Core 129 | . . . . 129 . . . . . . . . . . Treads 6815 | . . 1996 1433 2002 1146 237 1 . . . . . . . Legs 668 | 3 115 347 . . 203 . . . . . . . . . Wheels 1871 | . . . . . . 76 848 856 91 . . . . . Hover 4266 | . . . . . . . . . 74 723 1098 579 264 1528 Flight 468 | . . . . . . . . . . . . . . 468 Fastest Speed 13 | 120 120 120 240 50 160 125 125 140 42 42 24 35 22 13 Average Speed 141 | 120 120 179 241 204 220 227 138 140 111 42 37 37 37 36 Slowest Speed 445 | 120 120 320 320 240 400 246 320 140 445 42 42 38 38 98 Overloaded Moves 170 | . . . . . . . . . . . 3 . 10 157 Propulsion Burnouts . | . . . . . . . . . . . . . . . Robots Hopped . | . . . . . . . . . . . . . . . Potential Cave-ins 3 | . . . . . . . . . . . . 2 . 1 Cave-ins Triggered . | . . . . . . . . . . . . . . . Teleports 1 | . . . . . . . . . . . . . . 1 Exploration Rate (%) 56 | 2 34 75 97 91 35 6 92 95 61 96 34 19 45 64 Regions Visited 14 Branch Regions 9 Pre-discovered Areas 16 | . 1 1 7 3 1 . . . 3 . . . . . Known Exits Taken 9 | . . . . 1 1 1 1 1 1 1 1 . 1 . Unknown Exits Taken 5 | 1 1 1 1 . . . . . . . . 1 . . Scrap Searched 13 | . . 1 . 5 . . 3 2 . 2 . . . . Spaces Dug 50 | . . 2 . . 1 1 4 1 . 2 19 11 1 8 Terrain Destroyed 332 | . . 9 . . 21 7 133 66 . 2 21 45 2 26 Melee 2 | . . 2 . . . . . . . . . . . . Projectile 101 | . . 7 . . 11 7 6 1 . 2 21 18 2 26 AOE 229 | . . . . . 10 . 127 65 . . . 27 . . Terrain Rammed . | . . . . . . . . . . . . . . . Walls Destroyed . | . . . . . . . . . . . . . . . Machines Disabled . | . . . . . . . . . . . . . . . Actions | -11 -10 -10 -9 -9 -6 -5 -5 -5 -5 -4 -4 -3 -3 -3 --------- Run | Yrd Mat Sub Rec Scr Fac Fac Upp Upp Zhi Pro Fac Res Qua Frg Total 18090 | 4 153 2547 2888 3156 1608 378 1070 858 205 834 1146 621 276 2346 Wait 2959 | . 19 93 1378 976 27 6 192 . . 103 14 3 . 148 Move 14203 | 2 114 2342 1432 2130 1348 312 848 855 164 722 1097 578 263 1996 Hop . | . . . . . . . . . . . . . . . Pick Up 85 | . 1 10 7 23 20 5 2 . 6 . 3 1 1 6 Fast Attach 61 | . 3 4 . 4 13 6 2 . 8 . 3 2 2 14 Attach 64 | . . 4 1 2 21 8 2 . 4 1 2 2 1 16 Detach 40 | . 2 3 . 5 6 2 1 . 9 1 1 . 1 9 Swap 31 | 2 1 6 2 . 7 1 2 . . . 1 1 . 8 Drop 67 | . 1 15 3 12 2 1 2 . 14 1 1 1 2 12 Fire 372 | . 5 68 5 . 116 37 19 3 . 2 24 17 6 70 Melee 14 | . . 2 . 4 . . . . . . . . . 8 Ram . | . . . . . . . . . . . . . . . Kick 9 | . 7 . . . 2 . . . . . . . . . Crush 14 | . . . 7 . 7 . . . . . . . . . Escape Stasis 68 | . . . . . 2 . . . . . . 16 . 50 Rewire 90 | . . . 53 . 37 . . . . . . . . . Trap 4 | . . . . . . . . . . 3 . . . 1 Miscellaneous 9 | . . . . . . . . . . 1 . . . 8 Route ------- -11/Scrapyard -10/Materials (discovered 2 exits: [*Mat] / *Sub) -10/Subcaves (discovered 3 exits: [*Mat] / *Rec / *Scr) -9/Recycling (discovered 2 exits: [*Fac] / *Scr) -9/Scraptown (discovered 2 exits: *Fac x2) -6/Factory (discovered 4 exits: *Fac x2 / *Low x2) -5/Factory (discovered 2 exits: *Fac / *Upp) -5/Upper Caves -5/Upper Caves (discovered 2 exits: *Fac / *Zhi) -5/Zhirov -4/Proximity Caves -4/Factory (discovered 3 exits: *Res x2 / *Upp) -3/Research (discovered 4 exits: Res x2 / *Arm / *Qua) -3/Quarantine (discovered 3 exits: *Res / [*Sec] / *Frg) -3/Protoforge (discovered 1 exit: Res) History --------- Turn | Location | Event 4 | -11/Scrapyard | Discovered new exit (range 3) 7 | -11/Scrapyard | Entered Materials 8 | -10/Materials | Met a group of wandering Federalists 75 | -10/Materials | Discovered new exit (range 15) 145 | -10/Materials | Discovered new exit (range 3) 194 | -10/Materials | Entered Subcaves 195 | -10/Subcaves | Continued accompanying wandering Federalists (5) 195 | -10/Subcaves | Approached by a straggling Scientist 304 | -10/Subcaves | Build established: Mutant 452 | -10/Subcaves | Wandering Federalist uncovered a shortcut to Scraptown 552 | -10/Subcaves | Shifting Twisted Machinery released Mak. Hammer 554 | -10/Subcaves | Shifting Twisted Machinery released Mak. System Restoration Module 784 | -10/Subcaves | Shifting Twisted Machinery released Sub. Optics 799 | -10/Subcaves | Shifting Twisted Machinery released Flamer 1088 | -10/Subcaves | Discovered new exit (range 16) 1930 | -10/Subcaves | Learned location of Zion (-6) 1930 | -10/Subcaves | Met a Zionite searching for "candidates" 1943 | -10/Subcaves | A swath of the cavern ceiling suddenly collapsed 2967 | -10/Subcaves | Found Prototype Power Core 2967 | -10/Subcaves | Identified Meta Core 2969 | -10/Subcaves | Attached Meta Core, gained temporary slots: Propulsion, Utility, Weapon 3215 | -10/Subcaves | Visited Clippyterm 3219 | -10/Subcaves | Learned Factory garrison access intel 3276 | -10/Subcaves | Shifting Twisted Machinery released Flamer 3276 | -10/Subcaves | Shifting Twisted Machinery released Sub. Monowheel 3308 | -10/Subcaves | A swath of the cavern ceiling suddenly collapsed 3507 | -10/Subcaves | Found SUBCON Basin 4686 | -10/Subcaves | Discovered new exit (range 3) 4691 | -10/Subcaves | Entered Recycling 5382 | -9/Recycling | Discovered new exit (range 9) 6241 | -9/Recycling | Scanned before Scraplab entrance 6274 | -9/Recycling | Entered Scraplab 6394 | -9/Recycling | Discovered new exit (range 2) 7418 | -9/Recycling | Tech Extrapolator generated special schematic: Deep Structural Scanner 9618 | -9/Recycling | Entered Scraptown 9618 | -9/Scraptown | Accompanied by 2 allies 10510 | -9/Scraptown | Visited CPS Storage 10599 | -9/Scraptown | Visited Cave Peace 11087 | -9/Scraptown | Scanned Subdweller tech in exchange for log data 11092 | -9/Scraptown | Learned Factory stockpile data 11093 | -9/Scraptown | Tech Extrapolator generated special schematic: Machine Rigger 11094 | -9/Scraptown | Learned Factory trap positions 11097 | -9/Scraptown | Learned location of 1 exit from Upper Caves 11099 | -9/Scraptown | Learned Research non-interactive machine intel 11126 | -9/Scraptown | Discovered new exit (range 11) 11407 | -9/Scraptown | Visited Comm Corps 11433 | -9/Scraptown | Visited Cyclists 11585 | -9/Scraptown | Visited Spacefarers 12129 | -9/Scraptown | Visited Awakened 12227 | -9/Scraptown | Visited UFD Registry 12227 | -9/Scraptown | Registered with UFD as "Protogrid" 12354 | -9/Scraptown | Entered Cyclist Reading Room 12508 | -9/Scraptown | Visited Curators Association 12589 | -9/Scraptown | Visited Analyses Database 12642 | -9/Scraptown | Visited Junk Repository 12719 | -9/Scraptown | Received an X-ray algorithm 12784 | -9/Scraptown | Delivered Scrap Shield to a Scientist 13002 | -9/Scraptown | Visited A0-MCA Data Center 13017 | -9/Scraptown | Given a C rating by A0-MCA 13019 | -9/Scraptown | Found A0-MCA's Component Scanner 13104 | -9/Scraptown | Ran an X-ray algorithm 13183 | -9/Scraptown | Visited Derelict Rescue Squad 13198 | -9/Scraptown | Found DRS Beacon 13256 | -9/Scraptown | Visited Research Penetration Think Tank 13299 | -9/Scraptown | Visited Junk Cannon Lab 13335 | -9/Scraptown | Found Prototype Special Weapon 13346 | -9/Scraptown | Identified Junk Cannon 13379 | -9/Scraptown | Visited Observation Area 13480 | -9/Scraptown | Visited Scrapoid Pod Storage 13492 | -9/Scraptown | Found Scrapoid Pod 13541 | -9/Scraptown | Visited Cartography Club 13596 | -9/Scraptown | Found Surveybot 17 Chip 13622 | -9/Scraptown | Learned location of Warlord (-4) 13622 | -9/Scraptown | Learned 12 Materials zone layouts 13622 | -9/Scraptown | Learned 16 Materials zone layouts 13622 | -9/Scraptown | Learned 8 Lower Caves zone layouts 13622 | -9/Scraptown | Learned 12 Lower Caves zone layouts 13622 | -9/Scraptown | Learned 16 Upper Caves zone layouts 13622 | -9/Scraptown | Learned 20 Upper Caves zone layouts 13622 | -9/Scraptown | Learned 16 Proximity Caves zone layouts 13622 | -9/Scraptown | Learned 4 Armory zone layouts 13622 | -9/Scraptown | Learned Storage emergency access door positions 13622 | -9/Scraptown | Learned location of 2 exits from Research 13622 | -9/Scraptown | Learned location of 1 exit from Lower Caves 13622 | -9/Scraptown | Learned location of 1 exit from Proximity Caves 13622 | -9/Scraptown | Identified exit to Factory 14913 | -9/Scraptown | Met Optimus 14913 | -9/Scraptown | Accepted into 0bPrime 14995 | -9/Scraptown | Entered Factory 14995 | -6/Factory | Accompanied by 2 allies 14995 | -6/Factory | Evolved 8 slots: Power x1, Propulsion x2, Utility x3, Weapon x2 14996 | -6/Factory | Loaded intel: 83 trap records 14998 | -6/Factory | Loaded intel: 4 garrison access locations 15179 | -6/Factory | Discovered new exit (range 14) 15239 | -6/Factory | Identified exit to Factory 15372 | -6/Factory | Lost 4 allies 15554 | -6/Factory | Loaded intel: 8 recycling unit locations 15630 | -6/Factory | Spotted B-75 Beast 15661 | -6/Factory | Scrapoid reinforcements arrived 15676 | -6/Factory | Allies destroyed B-75 Beast 15681 | -6/Factory | Tech Extrapolator generated special schematic: Active Sensor Spoofer 15702 | -6/Factory | Lost 11 parts (1p5n1u4w) 15716 | -6/Factory | Lost 5 allies 15720 | -6/Factory | Destroyed 8 combat bots 15863 | -6/Factory | Learned location of Protoforge (-3) 16046 | -6/Factory | Build established: Scavenger-Gunner 16195 | -6/Factory | Lost 3 parts (2n1w) 16651 | -6/Factory | Found Prototype Processor 16651 | -6/Factory | Identified Exp. Targeting Computer 16925 | -6/Factory | Build established: Gunner 16984 | -6/Factory | Identified exit to Lower Caves 17923 | -6/Factory | Discovered exit to Factory (range 22) 18132 | -6/Factory | Found Prototype Launcher 18145 | -6/Factory | First assault squad dispatched 18188 | -6/Factory | Tech Extrapolator generated special schematic: Energy Deflector 18405 | -6/Factory | Entered another Factory area 18405 | -5/Factory | Evolved 2 slots: Utility x2 18406 | -5/Factory | Identified exit to Upper Caves 18435 | -5/Factory | Discovered new exit (range 11) 18713 | -5/Factory | Build established: Skirmisher 18798 | -5/Factory | Loaded intel: 8 recycling unit locations 18888 | -5/Factory | Lost 7 parts (2p1n1u3w) 18891 | -5/Factory | Destroyed 7 combat bots 19118 | -5/Factory | Identified Scatter Rocket Array 19240 | -5/Factory | Identified exit to Factory 19246 | -5/Factory | Entered Upper Caves 19247 | -5/Upper Caves | Identified exit to Upper Caves 19248 | -5/Upper Caves | UFD Scientist delivered a prototype 19249 | -5/Upper Caves | Found Prototype Protection 19303 | -5/Upper Caves | Learned Factory trap positions 20507 | -5/Upper Caves | Learned Factory emergency access door positions 20671 | -5/Upper Caves | Entered another Upper Caves area 20673 | -5/Upper Caves | Discovered new exit (range 98) 20753 | -5/Upper Caves | Learned Factory trap positions 21739 | -5/Upper Caves | Identified exit to Zhirov 21877 | -5/Upper Caves | Entered Zhirov 21877 | -5/Zhirov | Discovered new exit (range 3) 21903 | -5/Zhirov | Met Zhirov 21928 | -5/Zhirov | Learned location of Command (-1) 21940 | -5/Zhirov | Zhirov requested help retrieving the SGEMP Prototype 21963 | -5/Zhirov | Found Alien Artifact 21963 | -5/Zhirov | Identified Integrated Reactor 21963 | -5/Zhirov | Installed Integrated Reactor, increased core energy generation (+10) 21981 | -5/Zhirov | Found Alien Artifact 22043 | -5/Zhirov | Identified Enh. Scrap Shield 22095 | -5/Zhirov | Identified exit to Proximity Caves 22095 | -5/Zhirov | Entered Proximity Caves 22164 | -4/Proximity Caves | Activated DRS Beacon 22339 | -4/Proximity Caves | Learned Research interactive machine intel 22353 | -4/Proximity Caves | Build established: Scout 22484 | -4/Proximity Caves | Learned Armory garrison access intel 22484 | -4/Proximity Caves | Learned Factory trap positions 22484 | -4/Proximity Caves | Learned 6 Lower Caves zone layouts 22484 | -4/Proximity Caves | Learned location of 1 exit from Factory 22512 | -4/Proximity Caves | Entered Factory 22512 | -4/Factory | Evolved 2 slots: Utility x2 22513 | -4/Factory | Identified exit to Research 22514 | -4/Factory | Loaded intel: 75 trap records 22529 | -4/Factory | Loaded intel: 8 recycling unit locations 22714 | -4/Factory | Discovered new exit (range 14) 22721 | -4/Factory | Identified exit to Upper Caves 22816 | -4/Factory | Build established: Hacker-Scout 22872 | -4/Factory | Discovered exit to Research (range 23) 22993 | -4/Factory | Entered Research 22993 | -3/Research | Evolved 2 slots: Utility x2 22994 | -3/Research | Identified exit to Research 22994 | -3/Research | Identified exit to Armory 22995 | -3/Research | Loaded intel: 63 non-interactive machine locations 22996 | -3/Research | Loaded intel: 47 interactive machine locations 23024 | -3/Research | Loaded intel: 5 recycling unit locations 23178 | -3/Research | Discovered exit to Research (range 24) 23273 | -3/Research | Discovered new exit (range 16) 23274 | -3/Research | Spotted B-90 Cyclops 23278 | -3/Research | Entered Quarantine 23302 | -3/Quarantine | Found Alien Slashing Weapon 23302 | -3/Quarantine | Identified Sigix Broadsword 23320 | -3/Quarantine | Discovered exit to Research (range 20) 23369 | -3/Quarantine | Spotted Fortress 23393 | -3/Quarantine | Discovered new exit (range 6) 23393 | -3/Quarantine | Discovered new exit (range 7) 23395 | -3/Quarantine | Identified exit to Protoforge 23395 | -3/Quarantine | Entered Protoforge 23471 | -3/Protoforge | Spotted Hotshot 23471 | -3/Protoforge | Spotted Hotshot 23472 | -3/Protoforge | Superfortress began startup sequence 23530 | -3/Protoforge | Spotted B-86 Titan 23530 | -3/Protoforge | Spotted Overlord 23543 | -3/Protoforge | Spotted Hotshot 23543 | -3/Protoforge | Spotted Hotshot 23582 | -3/Protoforge | Found Cep. XC Strikerail 23633 | -3/Protoforge | Spotted EXE-6 23633 | -3/Protoforge | Spotted EXE-6 23641 | -3/Protoforge | Spotted Decapitator 23641 | -3/Protoforge | Spotted Decapitator 23650 | -3/Protoforge | UFD initiated attack on Protoforge 23650 | -3/Protoforge | Loaded intel: 3 recycling unit locations 23687 | -3/Protoforge | Optimus greeted in Protoforge 23692 | -3/Protoforge | Found Cep. XC Strikerail 23695 | -3/Protoforge | Found Exp. Core Analyzer 23697 | -3/Protoforge | Found Exp. Armor Integrity Analyzer 23749 | -3/Protoforge | Spotted EXE-6 23749 | -3/Protoforge | Spotted EXE-6 23773 | -3/Protoforge | Spotted AP7-3 23777 | -3/Protoforge | Spotted AP7-3 23803 | -3/Protoforge | Met 7R-MNS 23805 | -3/Protoforge | Identified Transdimensional Reconstructor 23805 | -3/Protoforge | Forge Plexus network access discovered 23832 | -3/Protoforge | Lost 15 allies 23965 | -3/Protoforge | Tech Extrapolator generated special schematic: Telecube 23983 | -3/Protoforge | Installed UFD Drillbomb at designated target 23983 | -3/Protoforge | UFD reported confirmed Drillbomb installation 23991 | -3/Protoforge | Spotted Executioner 23991 | -3/Protoforge | Spotted Striker 24021 | -3/Protoforge | Destroyed Executioner 24047 | -3/Protoforge | Spotted Striker 24050 | -3/Protoforge | Spotted Striker 24077 | -3/Protoforge | Destroyed Striker 24083 | -3/Protoforge | Spotted Striker 24096 | -3/Protoforge | Spotted Executioner 24120 | -3/Protoforge | Spotted Executioner 24157 | -3/Protoforge | Spotted Executioner 24191 | -3/Protoforge | Lost 11 allies 24221 | -3/Protoforge | UFD reported confirmed Drillbomb installation 24246 | -3/Protoforge | Build established: Scavenger-Mutant 24279 | -3/Protoforge | Spotted V383-k 24279 | -3/Protoforge | Spotted V651-s 24279 | -3/Protoforge | Spotted V956-k 24279 | -3/Protoforge | Spotted V037-a 24298 | -3/Protoforge | Found Cep. Combat Aerolev Unit 24341 | -3/Protoforge | Spotted Immortal 24341 | -3/Protoforge | Spotted Immortal 24343 | -3/Protoforge | Spotted Decapitator 24343 | -3/Protoforge | Spotted Decapitator 24343 | -3/Protoforge | Spotted Decapitator 24343 | -3/Protoforge | Spotted Decapitator 24358 | -3/Protoforge | Destroyed Decapitator 24361 | -3/Protoforge | Destroyed Decapitator 24366 | -3/Protoforge | Warped through subspace 24394 | -3/Protoforge | Lost 5 parts (1p3u1w) 24443 | -3/Protoforge | Scanned by Researcher 24459 | -3/Protoforge | Found Exp. Active Sensor Suite 24481 | -3/Protoforge | Core integrity fell below 50% 24486 | -3/Protoforge | Spotted Decapitator 24515 | -3/Protoforge | Spotted Hotshot 24515 | -3/Protoforge | Spotted Hotshot 24522 | -3/Protoforge | Spotted Decapitator 24522 | -3/Protoforge | Spotted Decapitator 24522 | -3/Protoforge | Spotted Decapitator 24522 | -3/Protoforge | Spotted Decapitator 24531 | -3/Protoforge | Spotted V907-z 24533 | -3/Protoforge | Spotted Immortal 24581 | -3/Protoforge | Core integrity fell below 20% 24591 | -3/Protoforge | Destroyed by Decapitator with Experimental Terror Saw Last Messages --------------- 24545_ Field strength at 48. 24546_ Field strength at 35. 24547_ Field strength at 22. 24548_ Field strength at 9. 24549_ Stasis field depleted. 24568_ Hotshot activates shielding mode. 24574_ Decapitator springs to life. 24575_ A0-MCA's Component Scanner severed. 24576_ Exp. Core Analyzer severed. 24580_ Hotshot activates shielding mode. 24580_ Tech Extrapolator severed. 24580_ Slug penetrates Reinforced Barrier. 24581_ Exp. Biomechanical Wings severed. 24583_ Penetrated by Slug. 24583_ Slug penetrates Reinforced Barrier. 24584_ Exp. Armor Integrity Analyzer destroyed. 24589_ HV Slug penetrates Reinforced Barrier. 24591_ 0bP_NET: Lugger 191 inbound, all units not involved in other operations escort to target. 24591_ Exp. Active Sensor Suite destroyed. Map ----- +----------------------------------------------------+ | ############### ##?######?#### #??????????????? | | ############### #######?###?## ################ | | ############### #####?######## | | ############### ############?# | | #####?######## #########++##### | | #########???# ##??#??????????? | | ##########?## ####???????????? | | +++######## ##########?###### ##?#???????????? | | ##### #??############## #######"??"?""? | | ##### ##?##########?###^ #####?###?###??? | | " " ##### ################# ######?#####??#? | | " " ##### ###?######?###### ######??###?#?## | | "G"" ##### ##########?####?# ##########?##### | | ##### ]################# ############?### | | ###########^^ ################# ######?#?##?#### | | ########### ##########??#### | | ########### ##########?##?## | | ########### c ######?#?#??#### | | ################## ##############??##?#### | | ################## ###########?####?#?#### | | ################## c##########?##########?# | | #?################ c ############?###??####? | | ################## ############?####?##### | | ################### #########?########?####? | | ##?##?############# c######################## | | ################### @#################?##?### | | ####?######"""""" """""""###?##?###?#?### | | ########### """" """" ###?######?####? | | ########### "" "" ################ | | ##""" ; T" "" #?###""""#####"" | | ##!!!! ### ##### !!##### [ | | $ | | FFF | | FFF | | FFF | | | | | | ##!!!!##### ##### !!!##### | | ##""""#####"""""""""""""""""""""""#####""""##?##"" | | ###########"""""""""""""""""""""""################ | | ###########"""""""""""""""""""""""######?#?####### | | ?####?############################################ | | #################?########??###################### | | ################?#######?##??####?####?########### | | ############?#########?###?#################?##### | | ################################################## | | ######### | | ### ## "" "" " | | "" ### ""## """" " "" "" """ | | ### T?## "" " "" """ """" "" "" | +----------------------------------------------------+ Best States ------------- Heat Dissipation 59 Energy Generation 47 Energy Capacity 360 Matter Stores 300 Matter Capacity 300 Sight Range 23 Robot Scan Range 20 Terrain Scan Range 24 Terrain Scan Density 1210 Armor Coverage 100 Evasion (%) 71 Targeting Accuracy 12 Core Analysis 8 Armor Integrity Analysis 50 Recoil Reduction 4 Offensive Hacking 26 Defensive Hacking 14 Item Schematics ----------------- Hrd. Medium Armor Plating | -9/Recycling | Hacked Deep Structural Scanner | -9/Recycling | Extrapolated Mak. Leg | -9/Recycling | Extrapolated Mak. Coolant Network | -9/Recycling | Extrapolated Mak. Light Armor Plating | -9/Recycling | Extrapolated Humpback | -9/Recycling | Extrapolated Battle Rifle | -9/Recycling | Extrapolated Barrage Gun | -9/Recycling | Extrapolated Hvy. Battle Rifle | -9/Scraptown | Extrapolated Mak. Targeting Computer | -9/Scraptown | Extrapolated Mak. System Shield | -9/Scraptown | Extrapolated Spk. Treads | -9/Scraptown | Extrapolated Machine Rigger | -9/Scraptown | Extrapolated Mak. Terrain Scan Processor | -9/Scraptown | Extrapolated Mak. Power Source | -6/Factory | Extrapolated Multitool | -6/Factory | Extrapolated Spk. Medium Treads | -6/Factory | Extrapolated Mak. Terrain Scanner | -6/Factory | Extrapolated 0b10 Decoder Chip [Skirmisher] | -6/Factory | Extrapolated Hvy. Beamcaster | -6/Factory | Extrapolated Mak. Flight Unit | -6/Factory | Extrapolated Mak. ECM Suite | -6/Factory | Extrapolated Active Sensor Spoofer | -6/Factory | Extrapolated Mak. Medium Armor Plating | -6/Factory | Extrapolated Mak. Ablative Armor | -6/Factory | Extrapolated Mak. Laser | -6/Factory | Extrapolated Bore Cannon | -6/Factory | Extrapolated Beamcaster | -6/Factory | Extrapolated Mak. Hover Unit | -6/Factory | Extrapolated Mak. Hacking Suite | -6/Factory | Extrapolated Mak. Salvage Targeting Computer | -6/Factory | Extrapolated Slug Cannon | -6/Factory | Extrapolated Energy Deflector | -6/Factory | Extrapolated Mak. Heavy Armor Plating | -5/Upper Caves | Extrapolated Assault Drone Bay | -5/Zhirov | Free Exp. Heat Sink | -5/Zhirov | Free Exp. Optical Array | -5/Zhirov | Free Imp. Arc Thrower | -5/Zhirov | Free Mak. Core Shielding | -5/Zhirov | Extrapolated Mak. Weapon Shielding | -5/Zhirov | Extrapolated Mak. Thermal Plating | -4/Proximity Caves | Extrapolated Mak. System Restoration Module | -4/Proximity Caves | Extrapolated Tactical Coordination Suite | -4/Factory | Extrapolated Mak. Shrapnel Gun | -4/Factory | Extrapolated Mak. Transmission Jammer | -4/Factory | Extrapolated 0b10 Decoder Chip [Generic] | -4/Factory | Extrapolated 0b10 Decoder Chip [Scout] | -4/Factory | Extrapolated Mak. Propulsion Shielding | -4/Factory | Extrapolated 0b10 Decoder Chip [Looter] | -3/Research | Extrapolated Mak. Axe | -3/Research | Extrapolated Spk. Heavy Treads | -3/Quarantine | Extrapolated Multireflex Exoskeleton | -3/Protoforge | Extrapolated Mak. Kinetic Plating | -3/Protoforge | Extrapolated Telecube | -3/Protoforge | Extrapolated Imp. Matter Neutralizer | -3/Protoforge | Archive Prc. Phase Gun | -3/Protoforge | Archive Enh. Multireflex Exoskeleton | -3/Protoforge | Extrapolated Mak. Cloaking Device | -3/Protoforge | Extrapolated Exp. Power Amplifier | -3/Protoforge | Archive Enh. Biometal Leg | -3/Protoforge | Archive Neutron Cannon | -3/Protoforge | Archive Mak. Utility Shielding | -3/Protoforge | Extrapolated Robot Schematics ------------------ Y-72 Warden | -3/Protoforge | Archive E-15 Imp | -3/Protoforge | Archive S-43 Plague | -3/Protoforge | Archive A-02 Transporter | -3/Protoforge | Archive T-07 Excavator | -3/Protoforge | Archive W-44 Eye | -3/Protoforge | Archive Fabricated ------------ Nothing Repaired ---------- Nothing Alien Tech Used ----------------- Integrated Reactor Sigix Broadsword Transdimensional Reconstructor Achievements -------------- None Challenges ------------ None Game ------ Seed SingularitySpreadMesh Manual? 0 Play Time 02:47:00 Cumulative 368.6 hours Start 2025.07.03 @ 16:44:23 End 2025.07.03 @ 20:11:39 Sessions 3 Manual Loads 0 Difficulty Rogue Special Mode None Game No. 249 Rogue 249 Adventurer 0 Explorer 0 Win Type - Total 27 Types 21/0/4/2/0/0/0/0/0/0 Lore% 90 Gallery% 80 Achievement% 67 Wizard Run 0 Options --------- Layout 0 ASCII 1 Keyboard 1 Movement Arrows Keybinds 0 Fullscreen 2 Font 18/Terminus Map View 76x50 Zoom Use 0% Tactical HUD 1 Map Filters NONE Filters NONE Steam 1 RUN: cbce99d3-1bbb-4604-bb25-2b5b316d2f07